Cogmind - Beta 16 @@@ ROGUE MODE // 2026.01.20 @ 20:50:53 Player: Dew Result: Destroyed by G-34 Mercenary with Small Laser Performance ------------- Evolutions (1) 500 Regions Visited (3) 600 Robots Destroyed (23) 115 Value Destroyed (345) 345 Prototype IDs (0) 0 Alien Tech Used (0) 0 Bonus (25) 25 TOTAL SCORE: 1585 Bonus ------- Follower Combat Kills 25 Cogmind --------- Core Integrity 0/400 Matter 174/300 Energy 100/100 System Corruption 0% Temperature Cool (6) Movement Core (100) Ox1 Location -9/Materials Parts ------- > --- POWER (1) -------- (None) > --- PROPULSION (3) --- (None) > --- UTILITY (3) ------ Small Storage Unit Hacking Suite > --- WEAPON (2) ------- (None) > --- INVENTORY (8) ---- Signal Interpreter Assault Rifle Light Assault Rifle Light Cannon Mining Laser Peak State ------------ > --- POWER ------------ Improved Ion Engine > --- PROPULSION ------- Improved Treads Aluminum Leg Aluminum Leg > --- UTILITY ---------- Small Storage Unit Seismic Detector Hacking Suite > --- WEAPON ----------- Beamcaster Light Cannon > --- INVENTORY -------- Aluminum Leg Signal Interpreter Assault Rifle Light Assault Rifle Grenade Launcher Rocket Launcher Mining Laser [Rating: 17] Favorites ----------- Power Light Ion Engine Engine Light Ion Engine Propulsion Aluminum Leg Treads Improved Treads Leg Aluminum Leg Hover Unit Improved Hover Unit Utility Small Storage Unit Device Seismic Detector Storage Small Storage Unit Processor Signal Interpreter Hackware Hacking Suite Weapon Assault Rifle Energy Gun Beamcaster Ballistic Gun Assault Rifle Ballistic Cannon Light Cannon Launcher Grenade Launcher Special Weapon Mining Laser Build | -11 -10 -10 -9 ------- Run | Yrd Mat Min Mat Slots Evolved 2 | . . . 2 Power . | . . . . Propulsion 1 | . . . 1 Utility 1 | . . . 1 Weapon . | . . . . Parts Attached 20 | . 2 1 17 Power 3 | . . 1 2 Engine 3 | . . 1 2 Core . | . . . . Reactor . | . . . . Propulsion 6 | . . . 6 Treads 2 | . . . 2 Leg 3 | . . . 3 Wheel . | . . . . Hover 1 | . . . 1 Flight . | . . . . Utility 3 | . 1 . 2 Device 1 | . . . 1 Storage . | . . . . Processor 1 | . 1 . . Hackware 1 | . . . 1 Protection . | . . . . Artifact . | . . . . Weapon 8 | . 1 . 7 Energy Gun 1 | . . . 1 Energy Cannon . | . . . . Ballistic Gun 3 | . 1 . 2 Ballistic Cannon 1 | . . . 1 Launcher 2 | . . . 2 Special Weapon 1 | . . . 1 Impact Weapon . | . . . . Slashing Weapon . | . . . . Piercing Weapon . | . . . . Special Melee Weapon . | . . . . Unidentified Prototypes . | . . . . Parts Lost 9 | . . . 9 Power 2 | . . . 2 Propulsion 5 | . . . 5 Utility 1 | . . . 1 Weapon 1 | . . . 1 Highest Loss Streak 4 | . . . 4 To Critical Strikes . | . . . . Average Backups 6 | 6 5 7 6 Power . | 1 1 . . Propulsion 1 | 4 2 1 . Utility 1 | . 1 2 1 Weapon 3 | 1 1 2 4 Tool/Special . | . . . . Unused Backups 10 | . 7 2 1 Power 1 | . 1 . . Propulsion 5 | . 4 1 . Utility 2 | . 1 . 1 Weapon 2 | . 1 1 . Tool/Special . | . . . . Average Slot Usage (%) 91 | . 98 100 87 Engine 10 | . 14 14 8 Treads 1 | . . . 2 Leg 26 | . 28 28 25 Device 5 | . . . 8 Storage 12 | . 14 14 11 Processor 5 | . 12 14 . Hackware 6 | . . . 10 Energy Gun 3 | . 2 . 4 Ballistic Gun 16 | . 25 28 10 Launcher 1 | . . . 2 Peak Build Rating 17 | 6 7 7 17 Average Rating 10 | 6 6 7 12 On Entrance 6 | 6 6 7 7 Avg Prop Armor Cover (%) 9 | . . . 9 Naked Turns . | . . . . Heaviest Build 22 | 11 11 11 22 Greatest Support 30 | 20 20 20 30 Greatest Overweight (x) 2 | . . . 2 Average Overweight (x) . | . . . . Largest Inventory Capacity 8 | 8 8 8 8 Average Capacity 8 | 8 8 8 8 Most Carried 8 | 6 7 8 8 Average Carried 6 | 6 5 7 6 Final Capacity 8 | 8 8 8 8 Final Carried 8 | 6 7 8 5 Class Distribution -------------------- 78% | Mutant 21% | Scavenger-Mutant Dominant Class ---------------- Mutant | -10/Materials Mutant | -10/Mines Mutant | -9/Materials Resources | -11 -10 -10 -9 ----------- Run | Yrd Mat Min Mat Matter Collected 420 | 200 44 30 146 Remotely . | . . . . Salvage Created 417 | . 32 40 345 Parts 33 | . 4 2 27 Haulers Intercepted . | . . . . Recyclers Shooed 2 | . . . 2 Parts Field Recycled . | . . . . Retrieved Matter . | . . . . Parts Self-Destructed . | . . . . Prevented . | . . . . Parts Restored . | . . . . Kills | -11 -10 -10 -9 ------- Run | Yrd Mat Min Mat Combat Hostiles Destroyed 16 | . 2 2 12 Guns 8 | . 2 2 4 AOE 8 | . . . 8 Classes Destroyed 8 | . 1 . 7 Worker 2 | . . . 2 Builder 2 | . . . 2 Tunneler 1 | . . . 1 Recycler 1 | . . . 1 Watcher 1 | . . . 1 Swarmer 13 | . 2 2 9 Grunt 1 | . . . 1 Sentry 2 | . . . 2 Best Kill Streak 9 | . 2 2 9 Combat Bots Only 6 | . 2 2 6 Max Kills in Single Turn 5 | . 1 1 5 Gunslinging . | . . . . Exploded 3 | . . . 3 Melee . | . . . . Uniques/NPCs Destroyed . | . . . . Combat | -11 -10 -10 -9 -------- Run | Yrd Mat Min Mat Hostile Shots Fired 178 | . 11 12 155 Missed 57 | . 3 4 50 Hits 121 | . 8 8 105 Projectile 121 | . 8 8 105 Critical Strikes 2 | . . . 2 Damage Taken 1550 | . 57 62 1431 Core 417 | . . 8 409 Absorbed by Shields . | . . . . Core Remaining (%) 98 | 100 . 96 . Volleys Fired 41 | . 6 5 30 Largest 2 | . 2 2 2 Hottest 108 | . 40 40 108 Shots Fired 73 | . 12 10 51 Gun 58 | . 12 10 36 Cannon 5 | . . . 5 Launcher 6 | . . . 6 Special 4 | . . . 4 Kinetic 49 | . 12 10 27 Thermal 18 | . . . 18 Explosive 6 | . . . 6 Electromagnetic . | . . . . Robot Hit Streak 8 | . 2 2 8 Robot Miss Streak 5 | . 3 5 3 Penetration Max . | . . . . Secondary Targets 1 | . . 1 . Max Gunslinging Chain 1 | . . 1 . Shots Hit Robots 32 | . 5 3 24 Core Hits 28 | . 2 2 24 Critical Kills . | . . . . Critical Parts Destroyed . | . . . . Critical Strikes . | . . . . Melee Attacks . | . . . . Impact . | . . . . Slashing . | . . . . Piercing . | . . . . Sneak Attacks . | . . . . Combat Hostiles . | . . . . Follow-up Attacks . | . . . . Damage Inflicted 1041 | . 47 35 959 Guns 333 | . 47 35 251 Cannons 71 | . . . 71 Explosions 615 | . . . 615 Melee . | . . . . Ramming 22 | . . . 22 Kinetic 299 | . 47 35 217 Thermal 105 | . . . 105 Explosive 615 | . . . 615 Electromagnetic . | . . . . Impact . | . . . . Slashing . | . . . . Piercing . | . . . . Highest Corruption . | . . . . Average Corruption . | . . . . Corruption Purged . | . . . . Corruption Blocked . | . . . . Overload Shots . | . . . . Overflow Damage 11 | . . . 11 Projectiles . | . . . . Explosions 11 | . . . 11 Melee . | . . . . Knockbacks . | . . . . Impact . | . . . . Kinetic . | . . . . Secondary . | . . . . Self-Inflicted Damage 137 | . . . 137 Shots 4 | . . . 4 Rammed . | . . . . Targets Rammed 3 | . . . 3 Kicked 3 | . . . 3 Crushed . | . . . . Highest Temperature 162 | . . . 162 Average Temperature 32 | . . . 32 Received Heat Transfer 459 | . . . 459 Siege Activations . | . . . . Martial Activations . | . . . . Shielding Activations . | . . . . Robots Disrupted . | . . . . Combat Hostiles . | . . . . Robots Corrupted . | . . . . Combat Hostiles . | . . . . Parts Fried . | . . . . Impact Corruptions . | . . . . Robots Melted . | . . . . Combat Hostiles . | . . . . Parts Melted 3 | . . . 3 Heat Transferred 185 | . . . 185 Parts Sabotaged . | . . . . Parts Stolen . | . . . . Parts Stripped . | . . . . Power Chain Reactions . | . . . . Alert | -11 -10 -10 -9 ------- Run | Yrd Mat Min Mat Maximum Alert Level 1 | . . . 1 Low Security (%) 85 | 100 100 100 77 Level 1 14 | . . . 22 Level 2 . | . . . . Level 3 . | . . . . Level 4 . | . . . . Level 5 . | . . . . High Security . | . . . . Max Security . | . . . . Peak Influence 273 | . 55 51 273 Initial 1 | . . 1 . Average 66 | . 19 16 91 Influence Increases 621 | . 65 50 506 Destroy 0b10 Robot/C 340 | . 40 40 260 Destroy 0b10 Robot/NC 40 | . . . 40 Destroy Leader 72 | . 10 10 52 Allied During Kill 1 | . . . 1 Disable Machine 75 | . . . 75 Destroy Structure 33 | . . . 33 Lose Combat Pursuer 60 | . 15 . 45 Influence Decreases 418 | . 60 55 303 Entered New Map 4 | . . 4 . Time Decay 332 | . 60 51 221 Lost Part 81 | . . . 81 Lost Ally 1 | . . . 1 Squads Dispatched 4 | . . . 4 Investigation 2 | . . . 2 Extermination . | . . . . Reinforcement 2 | . . . 2 Assault . | . . . . Garrison . | . . . . Intercept . | . . . . Searches Triggered . | . . . . Construction Impeded 1 | . . . 1 Haulers Reinforced . | . . . . Active Scanning Responses . | . . . . Cargo Convoy Interrupts . | . . . . Stealth | -11 -10 -10 -9 --------- Run | Yrd Mat Min Mat Distress Signals 3 | . . . 3 Communications Jammed . | . . . . Distress Signals . | . . . . Times Spotted 38 | . 5 3 30 Peak Tracking Total 7 | . 5 3 7 Tactical Retreats 3 | . 1 . 2 Traps | -11 -10 -10 -9 ------- Run | Yrd Mat Min Mat Traps Triggered 2 | . . . 2 Indirectly . | . . . . Trap Hack Attempts . | . . . . Triggered . | . . . . Disarmed . | . . . . Reprogrammed . | . . . . Reused . | . . . . Traps Extracted . | . . . . Installed . | . . . . Triggered . | . . . . Machines | -11 -10 -10 -9 ---------- Run | Yrd Mat Min Mat Machines Disabled 5 | . . . 5 Max in Single Turn 1 | . . . 1 Machines Repaired . | . . . . Machines Dismantled . | . . . . Machines Sabotaged . | . . . . Overloaded Fab Kills . | . . . . Hacking | -11 -10 -10 -9 --------- Run | Yrd Mat Min Mat Machines Accessed 5 | . 3 . 2 Terminals 5 | . 3 . 2 Fabricators . | . . . . Repair Stations . | . . . . Recycling Units . | . . . . Scanalyzers . | . . . . Garrison Access . | . . . . Total Hacks 7 | . 4 . 3 Successful 1 | . 1 . . Failed 6 | . 3 . 3 Catastrophic 1 | . . . 1 Database Lockouts . | . . . . Manual 5 | . 3 . 2 Terminals 7 | . 4 . 3 Fabricators . | . . . . Repair Stations . | . . . . Recycling Units . | . . . . Scanalyzers . | . . . . Garrison Access . | . . . . Terminal Hacks 1 | . 1 . . Zone Layout 1 | . 1 . . Fabricator Hacks . | . . . . Repair Station Hacks . | . . . . Recycling Unit Hacks . | . . . . Scanalyzer . | . . . . Garrison Access Hacks . | . . . . Unauthorized Hacks . | . . . . Terminals . | . . . . Fabricators . | . . . . Repair Stations . | . . . . Recycling Units . | . . . . Scanalyzers . | . . . . Garrison Access . | . . . . Data Cores Recovered 1 | . . . 1 Used . | . . . . Hacking Detections 4 | . 2 . 2 Full Trace Events . | . . . . Feedback Events . | . . . . Feedback Blocked . | . . . . Robot Schematics Acquired . | . . . . Robots Built . | . . . . Authchips . | . . . . Time . | . . . . Total Robot Build Rating . | . . . . Part Schematics Acquired . | . . . . Parts Built . | . . . . Authchips . | . . . . Time . | . . . . Total Part Build Rating . | . . . . Part Studies Acquired . | . . . . Parts Repaired . | . . . . Time . | . . . . Parts Recycled . | . . . . Recycled Matter . | . . . . Retrieved Matter . | . . . . Retrieved Components . | . . . . Parts Scanalyzed . | . . . . Part Schematics Acquired . | . . . . Parts Damaged . | . . . . Bothacking | -11 -10 -10 -9 ------------ Run | Yrd Mat Min Mat Used RIF Installer . | . . . . Robots Hacked . | . . . . Non-combat . | . . . . Combat . | . . . . Robot Hacks Applied . | . . . . Relay Couplers Released . | . . . . Fabnet Peak Effective % . | . . . . Robots Rewired . | . . . . Allies Hacked . | . . . . Hacks Repelled . | . . . . Allies | -11 -10 -10 -9 -------- Run | Yrd Mat Min Mat Total Allies 1 | . . 1 . Largest Group 1 | . . 1 1 Highest-Rated Group 31 | . . 31 31 Highest-Rated Ally 31 | . . 31 31 Total Orders . | . . . . Ally Attacks 8 | . . . 8 Total Damage 146 | . . . 146 Kills 2 | . . . 2 Allies Corrupted . | . . . . Allies Melted . | . . . . Intel | -11 -10 -10 -9 ------- Run | Yrd Mat Min Mat Active Infowar (turns) 536 | . . . 536 Seismic 536 | . . . 536 Robot Analysis Total . | . . . . Derelict Logs Recovered . | . . . . Drone Launches . | . . . . Drone Recoveries . | . . . . Exploration | -11 -10 -10 -9 ------------- Run | Yrd Mat Min Mat Turns Passed 1013 | 3 186 151 673 Spaces Moved 702 | 3 136 99 464 Core 27 | . . . 27 Treads 36 | . . . 36 Legs 577 | 3 136 99 339 Wheels . | . . . . Hover 62 | . . . 62 Flight . | . . . . Fastest Speed 60 | 120 120 120 60 Average Speed 116 | 120 120 120 115 Slowest Speed 260 | 120 120 120 260 Overloaded Moves . | . . . . Propulsion Burnouts . | . . . . Robots Hopped . | . . . . Potential Cave-ins . | . . . . Cave-ins Triggered . | . . . . Exploration Rate (%) 26 | 2 32 24 48 Regions Visited 3 Branch Regions 1 Pre-discovered Areas . | . . . . Known Exits Taken 2 | . 1 1 . Unknown Exits Taken 1 | 1 . . . Scrap Searched 2 | . . 2 . Spaces Dug 4 | . . . 4 Terrain Destroyed 35 | . . . 35 Melee . | . . . . Projectile 4 | . . . 4 AOE 31 | . . . 31 Terrain Rammed . | . . . . Walls Destroyed . | . . . . Machines Disabled . | . . . . Actions | -11 -10 -10 -9 --------- Run | Yrd Mat Min Mat Total 815 | 2 148 123 542 Wait 24 | . . 10 14 Move 699 | 2 135 98 464 Hop . | . . . . Pick Up 12 | . 3 5 4 Fast Attach 4 | . 1 . 3 Attach 6 | . . . 6 Detach . | . . . . Swap 13 | . 1 1 11 Drop 13 | . 2 4 7 Fire 41 | . 6 5 30 Melee . | . . . . Ram . | . . . . Kick 3 | . . . 3 Crush . | . . . . Escape Stasis . | . . . . Rewire . | . . . . Trap . | . . . . Miscellaneous . | . . . . Route ------- -11/Scrapyard -10/Materials -10/Mines -9/Materials History --------- Turn | Location | Event 1 | -11/Scrapyard | Discovered new exit (range 3) 4 | -11/Scrapyard | Entered Materials 134 | -10/Materials | Discovered new exit (range 13) 189 | -10/Materials | Identified exit to Mines 190 | -10/Materials | Entered Mines 244 | -10/Mines | Discovered new exit (range 15) 286 | -10/Mines | Received a Mining Laser from a helpful Derelict 310 | -10/Mines | Build established: Mutant 323 | -10/Mines | Identified exit to Materials 329 | -10/Mines | Received a Rocket Launcher from a helpful Derelict 341 | -10/Mines | Entered Materials 341 | -9/Materials | Accompanied by 1 ally 341 | -9/Materials | Evolved 2 slots: Propulsion x1, Utility x1 917 | -9/Materials | Lost 4 parts (1p2n1u) 947 | -9/Materials | Core integrity fell below 50% 978 | -9/Materials | Lost 3 parts (2n1w) 999 | -9/Materials | Core integrity fell below 20% 1014 | -9/Materials | Destroyed by G-34 Mercenary with Small Laser Last Messages --------------- 00879_ The unstable cave ceiling collapses. 00886_ Imp. Ion Engine destroyed. 00895_ The unstable cave ceiling collapses. 00901_ U-05 Engineer builds a Wall. 00921_ Rocket Launcher destroyed. 00934_ G-34 Mercenary destroyed. 00937_ Aluminum Leg destroyed. 00939_ Dropped Grenade Launcher. 00939_ Dropped Beamcaster. 00946_ M-13 Machinist repairs G-34 Mercenary. 00947_ Imp. Treads destroyed. 00950_ Critical hit (Burn: +37). 00952_ Triggered Alarm Trap. 00952_ An alarm sounds. 00952_ ALERT: Alarm triggered, dispatching investigation squad. 00960_ Acquired Imp. Hover Unit. 00999_ Imp. Hover Unit destroyed. 01005_ Triggered Alarm Trap. 01005_ An alarm sounds. 01005_ ALERT: Alarm triggered, dispatching investigation squad. Map ----- +----------------------------------------------------+ | ?????????????????????????????????# | | ????????????????????????????###### | | ??????????????????????????? ## | | ??????????????????????????? #? | | ????????????????????##########?### = [ #? | | ????????????????????# #???# %% =[ #? | | ????????????????????# #???# [= #? | | ????????????????????# #???######## ##? | | ????????????????????# #???# ## #?? | | ????????????????????# #???#""" ## #?? | | ????????????????????# #???#""" ## #?? | | ????????????????????# #???#""" ## #?? | | ????????????????????# #???# ## #?? | | ????????????????????# #???# ## ##? | | ??????????###############+###########+### #? | | ????????? #? | | ????????? T #? | | ????????? #? | | ???????????###### ###g#############+### #? | | ????????????????# ???#g [ #??# #######? | | ????????????????# ????# """ ##?# #??????? | | ??????????????????????# """ #?# #??????? | | ??????????????????????# """ #??# #??????? | | ??????????????????????# #??# #??????? | | ??????????????????????# #??# #??????? | | ??????????????????????#@ #??# #??????? | | ??????????????????????# "Y" #??#+#####??????? | | ??????????????????????+ """ #??# #?#######??? | | ??????????????????????##########??# # #??? | | ???????????????????????????????#### # #??? | | ????????###############????????# %+ #??? | | ????????# """"" """"" #????????# ##+########???? | | ????????# """"" """"" ########## # *= ! #??????? | | ????????# """"" """"" # + = #??????? | | ????????# # ##+#######"" #??????? | | ????????# # # #""" #??????? | | ????????# # / """ #""" !#??????? | | ????????#######+####### # """ # #??????? | | ????????????# # """ ########??????? | | ##########??# # #?????????????? | | # #??# + """ #?????????????? | | # """ #### # """ #?????????????? | | # """ # # # """ #?????????????? | | # """ = # #?????????????? | | # *[ ##########?????????????? | | # """ ] ! T #??????????????????????? | | # """ # ######### #??????????????????????? | | # """ ## ##???????# #??????????????????????? | | # !## #????????# #??????????????????????? | | ########### #?????#### ####???????????????????? | +----------------------------------------------------+ Best States ------------- Heat Dissipation 28 Energy Generation 12 Energy Capacity 265 Matter Stores 300 Matter Capacity 300 Sight Range 16 Terrain Scan Density 10 Evasion (%) 55 Recoil Reduction 1 Offensive Hacking 10 Item Schematics ----------------- None Robot Schematics ------------------ None Fabricated ------------ Nothing Repaired ---------- Nothing Studied --------- None Alien Tech Used ----------------- None Achievements -------------- None Challenges ------------ None Game ------ Seed HeatTerrorRouter Manual? 0 Play Time 00:17:03 Cumulative 17.7 hours Start 2026.01.20 @ 20:35:13 End 2026.01.20 @ 20:50:53 Sessions 1 Manual Loads 0 Difficulty Rogue Special Mode None Game No. 28 Rogue 28 Adventurer 0 Explorer 0 Win Type - Total 0 Types 0/0/0/0/0/0/0/0/0/0 Lore% 7 Gallery% 20 Achievement% 15 Wizard Run 0 Options --------- Layout 0 ASCII 0 Keyboard 0 Movement Numpad Keybinds 0 Fullscreen 1 Font 24/Smallcaps Map View 183x50 Zoom Use 0% Tactical HUD 1 Map Filters NONE Filters NONE Steam 1 RUN: e30af27d-ac5e-4ab3-8e8a-7b45f081410d